fUST/lending_fUST_20260521
["ID","MTS","AMOUNT","RATE_DAILY","PERIOD"]
[422718822,1779301842000,-800.49,9.041e-05,2]
[422718813,1779301842000,-500.0,9.041e-05,2]
[422718818,1779301842000,-1606.86,9.041e-05,2]
[422718832,1779301842000,-1028.78,9.041e-05,2]
[422718829,1779301842000,-549.27,9.041e-05,2]
[422718834,1779301842000,-500.0,9.041e-05,2]
[422718830,1779301842000,-3051.98,9.041e-05,2]
[422718842,1779301842000,-743.2,9.041e-05,2]
[422718835,1779301842000,-500.0,9.041e-05,2]
[422718839,1779301842000,-500.0,9.041e-05,2]
[422718841,1779301842000,-772.04,9.041e-05,2]
[422718836,1779301842000,-578.13,9.041e-05,2]
[422718840,1779301842000,-597.58,9.041e-05,2]
[422718838,1779301842000,-500.0,9.041e-05,2]
[422718837,1779301842000,-500.0,9.041e-05,2]
[422718843,1779301842000,-500.0,9.041e-05,2]
[422718797,1779301842000,-1072.08,9.041e-05,2]
[422718852,1779301842000,-1357.75,9.041e-05,2]
[422718848,1779301842000,-500.0,9.041e-05,2]
[422718849,1779301842000,-1024.69,9.041e-05,2]
[422718851,1779301842000,-2068.65,9.041e-05,2]
[422718857,1779301842000,-500.0,9.041e-05,2]
[422718821,1779301842000,-611.08,9.041e-05,2]
[422718855,1779301842000,-500.0,9.041e-05,2]
[422718846,1779301842000,-500.0,9.041e-05,2]
[422718847,1779301842000,-500.0,9.041e-05,2]
[422718853,1779301842000,-500.0,9.041e-05,2]
[422718854,1779301842000,-2125.89,9.041e-05,2]
[422718856,1779301842000,-835.52,9.041e-05,2]
[422718844,1779301842000,-549.84,9.041e-05,2]
[422718845,1779301842000,-500.0,9.041e-05,2]
[422718819,1779301842000,-500.0,9.041e-05,2]
[422718850,1779301842000,-2851.55,9.041e-05,2]
[422718816,1779301842000,-676.26,9.041e-05,2]
[422718815,1779301842000,-500.0,9.041e-05,2]
[422718784,1779301842000,-629.0,9.041e-05,2]
[422718789,1779301842000,-500.0,9.041e-05,2]
[422718787,1779301842000,-500.0,9.041e-05,2]
[422718790,1779301842000,-500.0,9.041e-05,2]
[422718794,1779301842000,-623.1,9.041e-05,2]
[422718793,1779301842000,-500.0,9.041e-05,2]
[422718788,1779301842000,-1144.8,9.041e-05,2]
[422718791,1779301842000,-500.0,9.041e-05,2]
[422718792,1779301842000,-618.41,9.041e-05,2]
[422718798,1779301842000,-736.68,9.041e-05,2]
[422718800,1779301842000,-500.0,9.041e-05,2]
[422718801,1779301842000,-500.0,9.041e-05,2]
[422718809,1779301842000,-500.0,9.041e-05,2]
[422718802,1779301842000,-500.0,9.041e-05,2]
[422718786,1779301842000,-500.0,9.041e-05,2]
[422718807,1779301842000,-500.0,9.041e-05,2]
[422718820,1779301842000,-578.39,9.041e-05,2]
[422718823,1779301842000,-500.0,9.041e-05,2]
[422718828,1779301842000,-500.0,9.041e-05,2]
[422718826,1779301842000,-1078.6,9.041e-05,2]
[422718799,1779301842000,-660.55,9.041e-05,2]
[422718824,1779301842000,-500.0,9.041e-05,2]
[422718808,1779301842000,-2207.11,9.041e-05,2]
[422718827,1779301842000,-1021.79,9.041e-05,2]
[422718811,1779301842000,-998.19,9.041e-05,2]
[422718805,1779301842000,-500.0,9.041e-05,2]
[422718804,1779301842000,-500.0,9.041e-05,2]
[422718858,1779301842000,-690.24,9.041e-05,2]
[422718803,1779301842000,-1509.14,9.041e-05,2]
[422718810,1779301842000,-880.79,9.041e-05,2]
[422718806,1779301842000,-500.0,9.041e-05,2]
[422718906,1779301843000,-985.86,9.041e-05,2]
[422718904,1779301843000,-1696.27,9.041e-05,2]
[422718900,1779301843000,-697.39,9.041e-05,2]
[422718898,1779301843000,-4907.49,9.041e-05,2]
[422718910,1779301843000,-1990.25,9.041e-05,2]
[422718894,1779301843000,-1261.24,9.041e-05,2]
[422718909,1779301843000,-5144.56,9.041e-05,2]
[422718899,1779301843000,-1720.23,9.041e-05,2]
[422718892,1779301843000,-500.0,9.041e-05,2]
[422718896,1779301843000,-2562.66,9.041e-05,2]
[422718891,1779301843000,-787.76,9.041e-05,2]
[422718897,1779301843000,-1006.5,9.041e-05,2]
[422718911,1779301843000,-675.56,9.041e-05,2]
[422718908,1779301843000,-1162.15,9.041e-05,2]
[422718914,1779301843000,-500.0,9.041e-05,2]
[422718902,1779301843000,-1335.41,9.041e-05,2]
[422718922,1779301843000,-169.369556,9.158e-05,2]
[422718890,1779301843000,-1972.65,9.041e-05,2]
[422718920,1779301843000,-165.16945691,9.058e-05,2]
[422718924,1779301843000,-720.0,9.221e-05,2]
[422718913,1779301843000,-3224.8,9.041e-05,2]
[422718917,1779301843000,-2691.0,9.041e-05,2]
[422718901,1779301843000,-500.0,9.041e-05,2]
[422718916,1779301843000,-742.19,9.041e-05,2]
[422718918,1779301843000,-1299.74,9.041e-05,2]
[422718912,1779301843000,-6801.99,9.041e-05,2]
[422718915,1779301843000,-500.0,9.041e-05,2]
[422718905,1779301843000,-579.67,9.041e-05,2]
[422718907,1779301843000,-1741.68,9.041e-05,2]
[422718903,1779301843000,-500.0,9.041e-05,2]
[422718919,1779301843000,-500.0,9.041e-05,2]
[422718893,1779301843000,-1046.14,9.041e-05,2]
[422718883,1779301843000,-1576.69,9.041e-05,2]
[422718895,1779301843000,-1226.64,9.041e-05,2]
[422718925,1779301843000,-548.08961851,9.227e-05,7]
[422718861,1779301843000,-500.0,9.041e-05,2]
[422718860,1779301843000,-1727.17,9.041e-05,2]
[422718862,1779301843000,-500.0,9.041e-05,2]
[422718859,1779301843000,-670.64,9.041e-05,2]
[422718864,1779301843000,-1815.11,9.041e-05,2]
[422718863,1779301843000,-1584.79,9.041e-05,2]
[422718869,1779301843000,-5945.74,9.041e-05,2]
[422718870,1779301843000,-500.0,9.041e-05,2]
[422718867,1779301843000,-500.0,9.041e-05,2]
[422718865,1779301843000,-500.0,9.041e-05,2]
[422718866,1779301843000,-2285.15,9.041e-05,2]
[422718868,1779301843000,-1214.55,9.041e-05,2]
[422718872,1779301843000,-5061.06,9.041e-05,2]
[422718889,1779301843000,-1972.88,9.041e-05,2]
[422718882,1779301843000,-29896.73,9.041e-05,2]
[422718871,1779301843000,-500.0,9.041e-05,2]
[422718875,1779301843000,-500.0,9.041e-05,2]
[422718874,1779301843000,-3142.43,9.041e-05,2]
[422718881,1779301843000,-2610.79,9.041e-05,2]
[422718878,1779301843000,-500.0,9.041e-05,2]
[422718877,1779301843000,-966.34,9.041e-05,2]
[422718880,1779301843000,-848.41,9.041e-05,2]
[422718876,1779301843000,-1870.68,9.041e-05,2]
[422718879,1779301843000,-956.76,9.041e-05,2]
[422718884,1779301843000,-3990.0,9.041e-05,2]
[422718886,1779301843000,-500.0,9.041e-05,2]
[422718887,1779301843000,-5851.38,9.041e-05,2]
[422718888,1779301843000,-500.0,9.041e-05,2]
[422718885,1779301843000,-500.0,9.041e-05,2]
[422718873,1779301843000,-500.0,9.041e-05,2]
[422718921,1779301843000,-10000.0,9.123e-05,2]
[422718926,1779301843000,-557.5788265,9.258e-05,2]
[422718978,1779301843000,-575.9570776,9.315e-05,2]
[422718960,1779301843000,-1509.14,9.315e-05,2]
[422718959,1779301843000,-500.0,9.315e-05,2]
[422718963,1779301843000,-500.0,9.315e-05,2]
[422718964,1779301843000,-500.0,9.315e-05,2]
[422718961,1779301843000,-500.0,9.315e-05,2]
[422718989,1779301843000,-500.0,9.315e-05,2]
[422718977,1779301843000,-800.49,9.315e-05,2]
[422718979,1779301843000,-500.0,9.315e-05,2]
[422718974,1779301843000,-303.21955307,9.315e-05,2]
[422718969,1779301843000,-500.0,9.315e-05,2]
[422718966,1779301843000,-500.0,9.315e-05,2]
[422718968,1779301843000,-998.19,9.315e-05,2]
[422718973,1779301843000,-1606.86,9.315e-05,2]
[422718970,1779301843000,-500.0,9.315e-05,2]
[422718957,1779301843000,-500.0,9.315e-05,2]
[422718971,1779301843000,-676.26,9.315e-05,2]
[422718972,1779301843000,-537.24,9.315e-05,2]
[422718976,1779301843000,-611.08,9.315e-05,2]
[422718981,1779301843000,-1021.79,9.315e-05,2]
[422718980,1779301843000,-1078.6,9.315e-05,2]
[422718991,1779301843000,-500.0,9.315e-05,2]
[422718984,1779301843000,-3051.98,9.315e-05,2]
[422718982,1779301843000,-500.0,9.315e-05,2]
[422718983,1779301843000,-549.27,9.315e-05,2]
[422718988,1779301843000,-578.13,9.315e-05,2]
[422718985,1779301843000,-1028.78,9.315e-05,2]
[422718990,1779301843000,-500.0,9.315e-05,2]
[422718987,1779301843000,-500.0,9.315e-05,2]
[422718986,1779301843000,-500.0,9.315e-05,2]
[422718923,1779301843000,-405.62823975,9.174e-05,2]
[422718975,1779301843000,-578.39,9.315e-05,2]
[422718954,1779301843000,-1072.08,9.315e-05,2]
[422718967,1779301843000,-880.79,9.315e-05,2]
[422718962,1779301843000,-500.0,9.315e-05,2]
[422718928,1779301843000,-657.4494,9.315e-05,2]
[422718938,1779301843000,-500.0,9.315e-05,2]
[422718939,1779301843000,-500.0,9.315e-05,2]
[422718927,1779301843000,-3432.207,9.315e-05,2]
[422718940,1779301843000,-500.0,9.315e-05,2]
[422718929,1779301843000,-500.0,9.315e-05,2]
[422718932,1779301843000,-500.0,9.315e-05,2]
[422718936,1779301843000,-1328.63,9.315e-05,2]
[422718958,1779301843000,-500.0,9.315e-05,2]
[422718935,1779301843000,-500.0,9.315e-05,2]
[422718933,1779301843000,-655.44,9.315e-05,2]
[422718937,1779301843000,-560.73,9.315e-05,2]
[422718930,1779301843000,-500.0,9.315e-05,2]
[422718934,1779301843000,-515.9,9.315e-05,2]
[422718941,1779301843000,-629.0,9.315e-05,2]
[422718931,1779301843000,-789.8,9.315e-05,2]
[422718945,1779301843000,-1144.8,9.315e-05,2]
[422718942,1779301843000,-500.0,9.315e-05,2]
[422718956,1779301843000,-660.55,9.315e-05,2]
[422718955,1779301843000,-736.68,9.315e-05,2]
[422718950,1779301843000,-500.0,9.315e-05,2]
[422718951,1779301843000,-623.1,9.315e-05,2]
[422718948,1779301843000,-500.0,9.315e-05,2]
[422718947,1779301843000,-500.0,9.315e-05,2]
[422718965,1779301843000,-2207.11,9.315e-05,2]
[422718946,1779301843000,-500.0,9.315e-05,2]
[422718943,1779301843000,-500.0,9.315e-05,2]
[422718952,1779301843000,-546.35,9.315e-05,2]
[422718953,1779301843000,-986.8,9.315e-05,2]
[422718944,1779301843000,-500.0,9.315e-05,2]
[422718949,1779301843000,-618.41,9.315e-05,2]
[422719050,1779301844000,-4907.49,9.315e-05,2]
[422719043,1779301844000,-787.76,9.315e-05,2]
[422719039,1779301844000,-5851.38,9.315e-05,2]
[422719047,1779301844000,-1226.64,9.315e-05,2]
[422719037,1779301844000,-500.0,9.315e-05,2]
[422719031,1779301844000,-956.76,9.315e-05,2]
[422719032,1779301844000,-848.41,9.315e-05,2]
[422719022,1779301844000,-500.0,9.315e-05,2]
[422719034,1779301844000,-29896.73,9.315e-05,2]
[422719029,1779301844000,-966.34,9.315e-05,2]
[422719035,1779301844000,-1576.69,9.315e-05,2]
[422719033,1779301844000,-2610.79,9.315e-05,2]
[422719030,1779301844000,-500.0,9.315e-05,2]
[422719028,1779301844000,-1870.68,9.315e-05,2]
[422719040,1779301844000,-500.0,9.315e-05,2]
[422719055,1779301844000,-500.0,9.315e-05,2]
[422719049,1779301844000,-1006.5,9.315e-05,2]
[422719036,1779301844000,-3990.0,9.315e-05,2]
[422719042,1779301844000,-1972.65,9.315e-05,2]
[422719038,1779301844000,-500.0,9.315e-05,2]
[422719044,1779301844000,-500.0,9.315e-05,2]
[422719041,1779301844000,-1972.88,9.315e-05,2]
[422719045,1779301844000,-1046.14,9.315e-05,2]
[422719046,1779301844000,-1261.24,9.315e-05,2]
[422719051,1779301844000,-1720.23,9.315e-05,2]
[422719053,1779301844000,-500.0,9.315e-05,2]
[422719052,1779301844000,-697.39,9.315e-05,2]
[422719061,1779301844000,-5144.56,9.315e-05,2]
[422719059,1779301844000,-1741.68,9.315e-05,2]
[422719027,1779301844000,-500.0,9.315e-05,2]
[422719048,1779301844000,-2562.66,9.315e-05,2]
[422719025,1779301844000,-500.0,9.315e-05,2]
[422718992,1779301844000,-597.58,9.315e-05,2]
[422719024,1779301844000,-5061.06,9.315e-05,2]
[422718993,1779301844000,-772.04,9.315e-05,2]
[422718994,1779301844000,-743.2,9.315e-05,2]
[422718996,1779301844000,-549.84,9.315e-05,2]
[422718998,1779301844000,-500.0,9.315e-05,2]
[422719001,1779301844000,-1024.69,9.315e-05,2]
[422719006,1779301844000,-2125.89,9.315e-05,2]
[422719000,1779301844000,-500.0,9.315e-05,2]
[422719002,1779301844000,-2851.55,9.315e-05,2]
[422718997,1779301844000,-500.0,9.315e-05,2]
[422718995,1779301844000,-500.0,9.315e-05,2]
[422719003,1779301844000,-2068.65,9.315e-05,2]
[422719005,1779301844000,-500.0,9.315e-05,2]
[422718999,1779301844000,-500.0,9.315e-05,2]
[422719008,1779301844000,-835.52,9.315e-05,2]
[422719020,1779301844000,-1214.55,9.315e-05,2]
[422719007,1779301844000,-500.0,9.315e-05,2]
[422719011,1779301844000,-670.64,9.315e-05,2]
[422719019,1779301844000,-500.0,9.315e-05,2]
[422719010,1779301844000,-690.24,9.315e-05,2]
[422719013,1779301844000,-500.0,9.315e-05,2]
[422719014,1779301844000,-500.0,9.315e-05,2]
[422719009,1779301844000,-500.0,9.315e-05,2]
[422719018,1779301844000,-2285.15,9.315e-05,2]
[422719015,1779301844000,-1584.79,9.315e-05,2]
[422719012,1779301844000,-1727.17,9.315e-05,2]
[422719017,1779301844000,-500.0,9.315e-05,2]
[422719016,1779301844000,-1815.11,9.315e-05,2]
[422719021,1779301844000,-5945.74,9.315e-05,2]
[422719023,1779301844000,-500.0,9.315e-05,2]
[422719026,1779301844000,-3142.43,9.315e-05,2]
[422719057,1779301844000,-579.67,9.315e-05,2]
[422719004,1779301844000,-1357.75,9.315e-05,2]
[422719058,1779301844000,-985.86,9.315e-05,2]
[422719103,1779301844000,-1072.08,9.589e-05,2]
[422719105,1779301844000,-660.55,9.589e-05,2]
[422719094,1779301844000,-1144.8,9.589e-05,2]
[422719104,1779301844000,-736.68,9.589e-05,2]
[422719106,1779301844000,-500.0,9.589e-05,2]
[422719100,1779301844000,-623.1,9.589e-05,2]
[422719095,1779301844000,-500.0,9.589e-05,2]
[422719098,1779301844000,-618.41,9.589e-05,2]
[422719101,1779301844000,-546.35,9.589e-05,2]
[422719102,1779301844000,-986.8,9.589e-05,2]
[422719096,1779301844000,-500.0,9.589e-05,2]
[422719099,1779301844000,-500.0,9.589e-05,2]
[422719097,1779301844000,-500.0,9.589e-05,2]
[422719109,1779301844000,-1509.14,9.589e-05,2]
[422719089,1779301844000,-500.0,9.589e-05,2]
[422719108,1779301844000,-500.0,9.589e-05,2]
[422719110,1779301844000,-500.0,9.589e-05,2]
[422719114,1779301844000,-2207.11,9.589e-05,2]
[422719112,1779301844000,-500.0,9.589e-05,2]
[422719116,1779301844000,-880.79,9.589e-05,2]
[422719115,1779301844000,-500.0,9.589e-05,2]
[422719113,1779301844000,-500.0,9.589e-05,2]
[422719118,1779301844000,-500.0,9.589e-05,2]
[422719117,1779301844000,-998.19,9.589e-05,2]
[422719123,1779301844000,-578.39,9.589e-05,2]
[422719119,1779301844000,-500.0,9.589e-05,2]
[422719121,1779301844000,-537.24,9.589e-05,2]
[422719120,1779301844000,-676.26,9.589e-05,2]
[422719122,1779301844000,-1606.86,9.589e-05,2]
[422719056,1779301844000,-1696.27,9.315e-05,2]
[422719111,1779301844000,-500.0,9.589e-05,2]
[422719088,1779301844000,-500.0,9.589e-05,2]
[422719107,1779301844000,-500.0,9.589e-05,2]
[422719087,1779301844000,-500.0,9.589e-05,2]
[422719085,1779301844000,-1328.63,9.589e-05,2]
[422719060,1779301844000,-1162.15,9.315e-05,2]
[422719063,1779301844000,-675.56,9.315e-05,2]
[422719062,1779301844000,-1990.25,9.315e-05,2]
[422719064,1779301844000,-6801.99,9.315e-05,2]
[422719066,1779301844000,-500.0,9.315e-05,2]
[422719065,1779301844000,-3224.8,9.315e-05,2]
[422719076,1779301844000,-3432.207,9.589e-05,2]
[422719077,1779301844000,-657.4494,9.589e-05,2]
[422719054,1779301844000,-1335.41,9.315e-05,2]
[422719078,1779301844000,-500.0,9.589e-05,2]
[422719068,1779301844000,-742.19,9.315e-05,2]
[422719072,1779301844000,-500.0,9.44e-05,2]
[422719075,1779301844000,-2351.0,9.579e-05,2]
[422719070,1779301844000,-1299.74,9.315e-05,2]
[422719079,1779301844000,-500.0,9.589e-05,2]
[422719069,1779301844000,-2691.0,9.315e-05,2]
[422719073,1779301844000,-588.57187868,9.566e-05,2]
[422719084,1779301844000,-221.17943839,9.589e-05,2]
[422719090,1779301844000,-629.0,9.589e-05,2]
[422719091,1779301844000,-500.0,9.589e-05,2]
[422719083,1779301844000,-515.9,9.589e-05,2]
[422719092,1779301844000,-500.0,9.589e-05,2]
[422719093,1779301844000,-500.0,9.589e-05,2]
[422719086,1779301844000,-560.73,9.589e-05,2]
[422719080,1779301844000,-789.8,9.589e-05,2]
[422719082,1779301844000,-655.44,9.589e-05,2]
[422719074,1779301844000,-587.0,9.579e-05,2]
[422719067,1779301844000,-500.0,9.315e-05,2]
[422719071,1779301844000,-500.0,9.315e-05,2]
[422719081,1779301844000,-500.0,9.589e-05,2]
[422719170,1779301845000,-500.0,9.589e-05,2]
[422719172,1779301845000,-500.0,9.589e-05,2]
[422719169,1779301845000,-500.0,9.589e-05,2]
[422719167,1779301845000,-1214.55,9.589e-05,2]
[422719168,1779301845000,-5945.74,9.589e-05,2]
[422719163,1779301845000,-1815.11,9.589e-05,2]
[422719157,1779301845000,-690.24,9.589e-05,2]
[422719160,1779301845000,-500.0,9.589e-05,2]
[422719158,1779301845000,-670.64,9.589e-05,2]
[422719161,1779301845000,-500.0,9.589e-05,2]
[422719156,1779301845000,-500.0,9.589e-05,2]
[422719155,1779301845000,-835.52,9.589e-05,2]
[422719159,1779301845000,-1727.17,9.589e-05,2]
[422719176,1779301845000,-966.34,9.589e-05,2]
[422719195,1779301845000,-1261.24,9.589e-05,2]
[422719177,1779301845000,-500.0,9.589e-05,2]
[422719174,1779301845000,-495.66722058,9.589e-05,2]
[422719179,1779301845000,-848.41,9.589e-05,2]
[422719171,1779301845000,-5061.06,9.589e-05,2]
[422719173,1779301845000,-3142.43,9.589e-05,2]
[422719175,1779301845000,-1870.68,9.589e-05,2]
[422719181,1779301845000,-2610.79,9.589e-05,2]
[422719185,1779301845000,-3990.0,9.589e-05,2]
[422719183,1779301845000,-29896.73,9.589e-05,2]
[422719184,1779301845000,-1576.69,9.589e-05,2]
[422719186,1779301845000,-500.0,9.589e-05,2]
[422719187,1779301845000,-500.0,9.589e-05,2]
[422719193,1779301845000,-500.0,9.589e-05,2]
[422719162,1779301845000,-1584.79,9.589e-05,2]
[422719178,1779301845000,-956.76,9.589e-05,2]
[422719153,1779301845000,-2125.89,9.589e-05,2]
[422719125,1779301845000,-800.49,9.589e-05,2]
[422719164,1779301845000,-500.0,9.589e-05,2]
[422719190,1779301845000,-1972.88,9.589e-05,2]
[422719124,1779301845000,-611.08,9.589e-05,2]
[422719126,1779301845000,-500.0,9.589e-05,2]
[422719128,1779301845000,-1021.79,9.589e-05,2]
[422719138,1779301845000,-500.0,9.589e-05,2]
[422719130,1779301845000,-549.27,9.589e-05,2]
[422719139,1779301845000,-597.58,9.589e-05,2]
[422719129,1779301845000,-500.0,9.589e-05,2]
[422719127,1779301845000,-1078.6,9.589e-05,2]
[422719134,1779301845000,-500.0,9.589e-05,2]
[422719131,1779301845000,-3051.98,9.589e-05,2]
[422719132,1779301845000,-1028.78,9.589e-05,2]
[422719136,1779301845000,-500.0,9.589e-05,2]
[422719137,1779301845000,-500.0,9.589e-05,2]
[422719165,1779301845000,-2285.15,9.589e-05,2]
[422719135,1779301845000,-578.13,9.589e-05,2]
[422719142,1779301845000,-500.0,9.589e-05,2]
[422719144,1779301845000,-500.0,9.589e-05,2]
[422719143,1779301845000,-549.84,9.589e-05,2]
[422719145,1779301845000,-376.26762369,9.589e-05,2]
[422719141,1779301845000,-743.2,9.589e-05,2]
[422719152,1779301845000,-500.0,9.589e-05,2]
[422719149,1779301845000,-2851.55,9.589e-05,2]
[422719148,1779301845000,-1024.69,9.589e-05,2]
[422719147,1779301845000,-500.0,9.589e-05,2]
[422719150,1779301845000,-2068.65,9.589e-05,2]
[422719151,1779301845000,-1357.75,9.589e-05,2]
[422719146,1779301845000,-618.39509249,9.589e-05,2]
[422719154,1779301845000,-500.0,9.589e-05,2]
[422719166,1779301845000,-500.0,9.589e-05,2]
[422719140,1779301845000,-772.04,9.589e-05,2]
[422719196,1779301845000,-1226.64,9.589e-05,2]
[422719133,1779301845000,-500.0,9.589e-05,2]
[422719189,1779301845000,-500.0,9.589e-05,2]
[422719244,1779301845000,-887.097494,9.628e-05,2]
[422719228,1779301845000,-787.291743,9.604e-05,2]
[422719229,1779301845000,-160.0,9.604e-05,2]
[422719242,1779301845000,-523.548747,9.628e-05,2]
[422719226,1779301845000,-473.645871,9.604e-05,2]
[422719224,1779301845000,-160.0,9.604e-05,2]
[422719231,1779301845000,-242.953593,9.604e-05,2]
[422719246,1779301845000,-160.0,9.628e-05,2]
[422719250,1779301845000,-160.0,9.628e-05,2]
[422719248,1779301845000,-714.898209,9.628e-05,2]
[422719249,1779301845000,-1269.796418,9.628e-05,2]
[422719251,1779301845000,-369.737121,9.628e-05,2]
[422719253,1779301845000,-160.0,9.652e-05,2]
[422719254,1779301845000,-163.449251,9.652e-05,2]
[422719222,1779301845000,-1155.68421,9.604e-05,2]
[422719255,1779301845000,-166.898502,9.652e-05,2]
[422719256,1779301845000,-160.0,9.652e-05,2]
[422719257,1779301845000,-663.472587,9.652e-05,2]
[422719260,1779301845000,-614.353915,9.652e-05,2]
[422719259,1779301845000,-160.0,9.652e-05,2]
[422719261,1779301845000,-1068.707831,9.652e-05,2]
[422719264,1779301845000,-627.616846,9.676e-05,2]
[422719262,1779301845000,-1010.07033023,9.666e-05,2]
[422719265,1779301845000,-1095.233692,9.676e-05,2]
[422719263,1779301845000,-160.0,9.676e-05,2]
[422719266,1779301845000,-160.0,9.676e-05,2]
[422719267,1779301845000,-343.367621,9.676e-05,2]
[422719268,1779301845000,-526.735243,9.676e-05,2]
[422719269,1779301845000,-160.0,9.676e-05,2]
[422719188,1779301845000,-5851.38,9.589e-05,2]
[422719258,1779301845000,-1166.945175,9.652e-05,2]
[422719238,1779301845000,-1360.084786,9.604e-05,2]
[422719252,1779301845000,-579.474242,9.628e-05,2]
[422719237,1779301845000,-760.042393,9.604e-05,2]
[422719204,1779301845000,-500.0,9.589e-05,2]
[422719202,1779301845000,-500.0,9.589e-05,2]
[422719206,1779301845000,-579.67,9.589e-05,2]
[422719205,1779301845000,-1696.27,9.589e-05,2]
[422719203,1779301845000,-1335.41,9.589e-05,2]
[422719201,1779301845000,-697.39,9.589e-05,2]
[422719207,1779301845000,-985.86,9.589e-05,2]
[422719198,1779301845000,-1006.5,9.589e-05,2]
[422719200,1779301845000,-1720.23,9.589e-05,2]
[422719199,1779301845000,-4907.49,9.589e-05,2]
[422719208,1779301845000,-1741.68,9.589e-05,2]
[422719192,1779301845000,-787.76,9.589e-05,2]
[422719240,1779301845000,-160.0,9.628e-05,2]
[422719191,1779301845000,-1972.65,9.589e-05,2]
[422719197,1779301845000,-2562.66,9.589e-05,2]
[422719209,1779301845000,-1162.15,9.589e-05,2]
[422719194,1779301845000,-1046.14,9.589e-05,2]
[422719210,1779301845000,-5144.56,9.589e-05,2]
[422719211,1779301845000,-1990.25,9.589e-05,2]
[422719233,1779301845000,-325.907186,9.604e-05,2]
[422719223,1779301845000,-2151.368421,9.604e-05,2]
[422719217,1779301845000,-742.19,9.589e-05,2]
[422719219,1779301845000,-1299.74,9.589e-05,2]
[422719214,1779301845000,-3224.8,9.589e-05,2]
[422719221,1779301845000,-160.0,9.604e-05,2]
[422719212,1779301845000,-675.56,9.589e-05,2]
[422719213,1779301845000,-6801.99,9.589e-05,2]
[422719216,1779301845000,-500.0,9.589e-05,2]
[422719215,1779301845000,-500.0,9.589e-05,2]
[422719220,1779301845000,-500.0,9.589e-05,2]
[422719235,1779301845000,-160.0,9.604e-05,2]
[422719218,1779301845000,-2691.0,9.589e-05,2]
[422719309,1779301846000,-1144.8,9.863e-05,2]
[422719313,1779301846000,-618.41,9.863e-05,2]
[422719312,1779301846000,-500.0,9.863e-05,2]
[422719311,1779301846000,-500.0,9.863e-05,2]
[422719310,1779301846000,-500.0,9.863e-05,2]
[422719303,1779301846000,-500.0,9.863e-05,2]
[422719307,1779301846000,-500.0,9.863e-05,2]
[422719306,1779301846000,-500.0,9.863e-05,2]
[422719316,1779301846000,-546.35,9.863e-05,2]
[422719305,1779301846000,-629.0,9.863e-05,2]
[422719317,1779301846000,-986.8,9.863e-05,2]
[422719314,1779301846000,-500.0,9.863e-05,2]
[422719308,1779301846000,-500.0,9.863e-05,2]
[422719321,1779301846000,-500.0,9.863e-05,2]
[422719331,1779301846000,-880.79,9.863e-05,2]
[422719322,1779301846000,-500.0,9.863e-05,2]
[422719319,1779301846000,-736.68,9.863e-05,2]
[422719318,1779301846000,-1072.08,9.863e-05,2]
[422719328,1779301846000,-500.0,9.863e-05,2]
[422719330,1779301846000,-500.0,9.863e-05,2]
[422719329,1779301846000,-2207.11,9.863e-05,2]
[422719325,1779301846000,-500.0,9.863e-05,2]
[422719323,1779301846000,-500.0,9.863e-05,2]
[422719327,1779301846000,-500.0,9.863e-05,2]
[422719326,1779301846000,-500.0,9.863e-05,2]
[422719324,1779301846000,-1509.14,9.863e-05,2]
[422719333,1779301846000,-500.0,9.863e-05,2]
[422719340,1779301846000,-800.49,9.863e-05,2]
[422719315,1779301846000,-623.1,9.863e-05,2]
[422719320,1779301846000,-660.55,9.863e-05,2]
[422719304,1779301846000,-500.0,9.863e-05,2]
[422719271,1779301846000,-536.156134,9.676e-05,2]
[422719301,1779301846000,-560.73,9.863e-05,2]
[422719341,1779301846000,-536.3046821,9.863e-05,2]
[422719272,1779301846000,-160.0,9.676e-05,2]
[422719270,1779301846000,-348.078067,9.676e-05,2]